[Event "December 12 Early 2023"]
[Site "https://www.chess.com"]
[Date "2023.12.12"]
[Round "2"]
[White "JG-17"]
[Black "Negron Lizarazo, Juan Sebastian"]
[Result "1-0"]
[Board "215"]
[TimeControl "180+1"]
[BlackFideId "3936910"]
[WhiteElo "2446"]
[BlackElo "2114"]
[BlackTeam "COL"]
[WhiteClock "0:01:24"]
[BlackClock "0:00:00"]

1. d4 {[%clk 0:02:45]}  Nf6 {[%clk 0:02:43]} 2. c4 {[%clk 0:02:44]}  g6 {[%clk 0:02:42]} 3. Nc3 {[%clk 0:02:43]}  d5 {[%clk 0:02:41]} 4. e3 {[%clk 0:02:43]}  Bg7 {[%clk 0:02:39]} 5. Nf3 {[%clk 0:02:43]}  b6 {[%clk 0:02:37]} 6. Be2 {[%clk 0:02:43]}  Bb7 {[%clk 0:02:38]} 7. O-O {[%clk 0:02:44]}  O-O {[%clk 0:02:36]} 8. Bd2 {[%clk 0:02:43]}  Nbd7 {[%clk 0:02:33]} 9. Rc1 {[%clk 0:02:43]}  c5 {[%clk 0:02:32]} 10. cxd5 {[%clk 0:02:41]}  Nxd5 {[%clk 0:02:31]} 11. Nxd5 {[%clk 0:02:41]}  Bxd5 {[%clk 0:02:31]} 12. Bc3 {[%clk 0:02:42]}  cxd4 {[%clk 0:02:31]} 13. Bxd4 {[%clk 0:02:36]}  Nf6 {[%clk 0:02:13]} 14. Ne5 {[%clk 0:02:32]}  Qd6 {[%clk 0:01:52]} 15. Qa4 {[%clk 0:02:26]}  a5 {[%clk 0:01:43]} 16. Rfd1 {[%clk 0:02:25]}  Ne4 {[%clk 0:01:32]} 17. Nc6 {[%clk 0:02:22]}  Rac8 {[%clk 0:01:20]} 18. Bxg7 {[%clk 0:02:17]}  Kxg7 {[%clk 0:01:14]} 19. Qd4+ {[%clk 0:02:16]}  Nf6 {[%clk 0:01:08]} 20. Qxb6 {[%clk 0:02:14]}  Rxc6 {[%clk 0:01:03]} 21. Rxc6 {[%clk 0:02:10]}  Qxc6 {[%clk 0:01:03]} 22. Qxa5 {[%clk 0:02:11]}  Ra8 {[%clk 0:01:01]} 23. Qb4 {[%clk 0:02:06]}  Rxa2 {[%clk 0:00:58]} 24. f3 {[%clk 0:01:58]}  e6 {[%clk 0:00:50]} 25. e4 {[%clk 0:01:55]}  Ra4 {[%clk 0:00:44]} 26. exd5 {[%clk 0:01:54]}  Nxd5 {[%clk 0:00:41]} 27. Qd2 {[%clk 0:01:48]}  Qc5+ {[%clk 0:00:31]} 28. Kh1 {[%clk 0:01:47]}  Qf2 {[%clk 0:00:21]} 29. Rf1 {[%clk 0:01:45]}  Qh4 {[%clk 0:00:18]} 30. b3 {[%clk 0:01:44]}  Rb4 {[%clk 0:00:16]} 31. Bc4 {[%clk 0:01:45]}  Rb8 {[%clk 0:00:12]} 32. Bxd5 {[%clk 0:01:43]}  Rd8 {[%clk 0:00:12]} 33. Qc3+ {[%clk 0:01:42]}  Kg8 {[%clk 0:00:12]} 34. Be4 {[%clk 0:01:42]}  h5 {[%clk 0:00:09]} 35. b4 {[%clk 0:01:41]}  Rb8 {[%clk 0:00:09]} 36. Rb1 {[%clk 0:01:39]}  Rb5 {[%clk 0:00:08]} 37. Qc4 {[%clk 0:01:35]}  Rg5 {[%clk 0:00:07]} 38. Qc8+ {[%clk 0:01:33]}  Kg7 {[%clk 0:00:06]} 39. Qc3+ {[%clk 0:01:34]}  Kh7 {[%clk 0:00:07]} 40. b5 {[%clk 0:01:34]}  Qf2 {[%clk 0:00:06]} 41. Rg1 {[%clk 0:01:31]}  h4 {[%clk 0:00:05]} 42. Qe1 {[%clk 0:01:28]}  Rxg2 {[%clk 0:00:01]} 43. Qxf2 {[%clk 0:01:25]}  Rxf2 {[%clk 0:00:02]} 44. Rb1 {[%clk 0:01:25]}  Rb2 {[%clk 0:00:00]} 45. Rxb2 {[%clk 0:01:24]} 1-0

[Event "December 12 Early 2023"]
[Site "https://www.chess.com"]
[Date "2023.12.12"]
[Round "2"]
[White "Bogaudinov, Rushan"]
[Black "Luxama, Jacques Muller"]
[Result "0-1"]
[Board "216"]
[TimeControl "180+1"]
[WhiteFideId "4129288"]
[BlackFideId "11900113"]
[WhiteElo "2445"]
[BlackElo "2108"]
[WhiteTeam "RUS"]
[BlackTeam "HAI"]
[WhiteClock "0:00:00"]
[BlackClock "0:00:08"]

1. e4 {[%clk 0:02:56]}  c5 {[%clk 0:02:58]} 2. Nf3 {[%clk 0:02:56]}  d6 {[%clk 0:02:56]} 3. d4 {[%clk 0:02:55]}  cxd4 {[%clk 0:02:57]} 4. Nxd4 {[%clk 0:02:55]}  Nf6 {[%clk 0:02:56]} 5. Nc3 {[%clk 0:02:55]}  Nc6 {[%clk 0:02:56]} 6. Nxc6 {[%clk 0:02:54]}  bxc6 {[%clk 0:02:55]} 7. Be2 {[%clk 0:02:55]}  e5 {[%clk 0:02:53]} 8. O-O {[%clk 0:02:55]}  h6 {[%clk 0:02:53]} 9. f4 {[%clk 0:02:55]}  exf4 {[%clk 0:02:48]} 10. Bxf4 {[%clk 0:02:55]}  Be7 {[%clk 0:02:49]} 11. Kh1 {[%clk 0:02:50]}  O-O {[%clk 0:02:48]} 12. Qd2 {[%clk 0:02:50]}  Qb6 {[%clk 0:02:44]} 13. b3 {[%clk 0:02:47]}  Be6 {[%clk 0:02:37]} 14. Bf3 {[%clk 0:02:21]}  Rad8 {[%clk 0:02:34]} 15. Rad1 {[%clk 0:02:18]}  Ng4 {[%clk 0:02:21]} 16. Na4 {[%clk 0:02:06]}  Qc7 {[%clk 0:02:09]} 17. c4 {[%clk 0:01:57]}  Ne5 {[%clk 0:02:08]} 18. Be2 {[%clk 0:01:54]}  d5 {[%clk 0:01:48]} 19. cxd5 {[%clk 0:01:47]}  cxd5 {[%clk 0:01:48]} 20. Qb2 {[%clk 0:01:43]}  Bf6 {[%clk 0:01:34]} 21. Rc1 {[%clk 0:01:22]}  Qb8 {[%clk 0:01:29]} 22. Bxh6 {[%clk 0:01:08]}  Nf3 {[%clk 0:01:14]} 23. e5 {[%clk 0:00:49]}  Bxe5 {[%clk 0:01:08]} 24. Qb1 {[%clk 0:00:45]}  Nxh2 {[%clk 0:00:58]} 25. Bg5 {[%clk 0:00:44]}  Nxf1 {[%clk 0:00:57]} 26. Rxf1 {[%clk 0:00:42]}  f6 {[%clk 0:00:46]} 27. Be3 {[%clk 0:00:41]}  d4 {[%clk 0:00:45]} 28. Bd2 {[%clk 0:00:39]}  Kf7 {[%clk 0:00:37]} 29. Bh5+ {[%clk 0:00:33]}  Ke7 {[%clk 0:00:31]} 30. Rf3 {[%clk 0:00:19]}  Rh8 {[%clk 0:00:30]} 31. Qg6 {[%clk 0:00:16]}  Rdg8 {[%clk 0:00:28]} 32. Kg1 {[%clk 0:00:11]}  d3 {[%clk 0:00:13]} 33. Be3 {[%clk 0:00:09]}  d2 {[%clk 0:00:12]} 34. Bxd2 {[%clk 0:00:08]}  Bd4+ {[%clk 0:00:12]} 35. Kf1 {[%clk 0:00:08]}  Qb5+ {[%clk 0:00:11]} 36. Rd3 {[%clk 0:00:07]}  Bf5 {[%clk 0:00:10]} 37. Qg3 {[%clk 0:00:06]}  Bxd3+ {[%clk 0:00:10]} 38. Ke1 {[%clk 0:00:05]}  Rxh5 {[%clk 0:00:09]} 39. a3 {[%clk 0:00:03]}  Re5+ {[%clk 0:00:09]} 40. Kd1 {[%clk 0:00:03]}  Be2+ {[%clk 0:00:09]} 41. Kc1 {[%clk 0:00:03]}  Qc6+ {[%clk 0:00:09]} 42. Kb1 {[%clk 0:00:00]}  Qe4+ {[%clk 0:00:08]} 0-1

[Event "December 12 Early 2023"]
[Site "https://www.chess.com"]
[Date "2023.12.12"]
[Round "2"]
[White "Perez Cruz, Adianet"]
[Black "Pourkashiyan, Atousa"]
[Result "0-1"]
[Board "219"]
[TimeControl "180+1"]
[WhiteFideId "3510115"]
[BlackFideId "12502014"]
[WhiteElo "2042"]
[BlackElo "2431"]
[WhiteTeam "CUB"]
[BlackTeam "USA"]
[WhiteClock "0:00:19"]
[BlackClock "0:00:14"]

1. d4 {[%clk 0:03:00]}  Nf6 {[%clk 0:02:59]} 2. Bg5 {[%clk 0:02:56]}  e6 {[%clk 0:02:59]} 3. Bxf6 {[%clk 0:02:53]}  Qxf6 {[%clk 0:02:58]} 4. c3 {[%clk 0:02:54]}  b6 {[%clk 0:02:57]} 5. Nd2 {[%clk 0:02:54]}  Bb7 {[%clk 0:02:57]} 6. Ngf3 {[%clk 0:02:55]}  d6 {[%clk 0:02:53]} 7. g3 {[%clk 0:02:55]}  Nd7 {[%clk 0:02:52]} 8. Bg2 {[%clk 0:02:56]}  g6 {[%clk 0:02:52]} 9. a4 {[%clk 0:02:55]}  Bg7 {[%clk 0:02:52]} 10. a5 {[%clk 0:02:55]}  c5 {[%clk 0:02:47]} 11. O-O {[%clk 0:02:54]}  O-O {[%clk 0:02:45]} 12. a6 {[%clk 0:02:49]}  Bc6 {[%clk 0:02:44]} 13. Nc4 {[%clk 0:02:45]}  Qe7 {[%clk 0:02:41]} 14. dxc5 {[%clk 0:02:44]}  dxc5 {[%clk 0:02:40]} 15. Qc2 {[%clk 0:02:41]}  Rad8 {[%clk 0:02:23]} 16. Rfd1 {[%clk 0:02:40]}  Nf6 {[%clk 0:02:17]} 17. Nfe5 {[%clk 0:02:33]}  Bxg2 {[%clk 0:02:16]} 18. Kxg2 {[%clk 0:02:34]}  Qc7 {[%clk 0:02:14]} 19. Nf3 {[%clk 0:02:17]}  Nd5 {[%clk 0:02:06]} 20. Rd2 {[%clk 0:02:07]}  Ne7 {[%clk 0:01:51]} 21. Rad1 {[%clk 0:02:05]}  Nc6 {[%clk 0:01:48]} 22. Na3 {[%clk 0:02:04]}  Bf6 {[%clk 0:01:42]} 23. b4 {[%clk 0:01:38]}  cxb4 {[%clk 0:01:25]} 24. cxb4 {[%clk 0:01:39]}  Rxd2 {[%clk 0:01:21]} 25. Rxd2 {[%clk 0:01:36]}  Qc8 {[%clk 0:01:20]} 26. b5 {[%clk 0:01:32]}  Ne5 {[%clk 0:01:04]} 27. Nxe5 {[%clk 0:01:23]}  Bxe5 {[%clk 0:01:03]} 28. Nc4 {[%clk 0:01:23]}  Bb8 {[%clk 0:01:02]} 29. Ne3 {[%clk 0:01:19]}  Qe8 {[%clk 0:00:59]} 30. Qd3 {[%clk 0:00:58]}  Qe7 {[%clk 0:00:55]} 31. Ng4 {[%clk 0:00:54]}  h5 {[%clk 0:00:53]} 32. Ne3 {[%clk 0:00:52]}  Qb4 {[%clk 0:00:51]} 33. Qd7 {[%clk 0:00:44]}  Qc5 {[%clk 0:00:43]} 34. Qc6 {[%clk 0:00:37]}  Qb4 {[%clk 0:00:41]} 35. Rd3 {[%clk 0:00:34]}  h4 {[%clk 0:00:41]} 36. Nc4 {[%clk 0:00:32]}  Qe1 {[%clk 0:00:37]} 37. Nd6 {[%clk 0:00:30]}  Qxe2 {[%clk 0:00:34]} 38. Re3 {[%clk 0:00:30]}  h3+ {[%clk 0:00:33]} 39. Kxh3 {[%clk 0:00:29]}  Qxf2 {[%clk 0:00:33]} 40. Rf3 {[%clk 0:00:28]}  Qd4 {[%clk 0:00:28]} 41. Nxf7 {[%clk 0:00:26]}  Qg7 {[%clk 0:00:13]} 42. Ng5 {[%clk 0:00:19]}  Qh6+ {[%clk 0:00:13]} 43. Kg4 {[%clk 0:00:19]}  Qh5# {[%clk 0:00:14]} 0-1

[Event "December 12 Early 2023"]
[Site "https://www.chess.com"]
[Date "2023.12.12"]
[Round "2"]
[White "Saim, Mohamed Ilias"]
[Black "Dmitrenko, Viktor"]
[Result "0-1"]
[Board "220"]
[TimeControl "180+1"]
[WhiteFideId "7900465"]
[BlackFideId "14110270"]
[WhiteElo "2039"]
[BlackElo "2429"]
[WhiteTeam "ALG"]
[BlackTeam "UKR"]
[WhiteClock "0:00:04"]
[BlackClock "0:00:35"]

1. d4 {[%clk 0:03:00]}  e6 {[%clk 0:03:00]} 2. c4 {[%clk 0:02:59]}  Nf6 {[%clk 0:02:59]} 3. Nf3 {[%clk 0:02:59]}  d5 {[%clk 0:02:56]} 4. e3 {[%clk 0:02:59]}  a6 {[%clk 0:02:50]} 5. Nbd2 {[%clk 0:02:58]}  c5 {[%clk 0:02:49]} 6. b3 {[%clk 0:02:53]}  cxd4 {[%clk 0:02:44]} 7. Nxd4 {[%clk 0:02:47]}  Nc6 {[%clk 0:02:39]} 8. N2f3 {[%clk 0:02:39]}  Bb4+ {[%clk 0:02:33]} 9. Bd2 {[%clk 0:02:36]}  Bd6 {[%clk 0:02:29]} 10. cxd5 {[%clk 0:02:29]}  exd5 {[%clk 0:02:28]} 11. Bd3 {[%clk 0:02:26]}  O-O {[%clk 0:02:24]} 12. O-O {[%clk 0:02:26]}  Bg4 {[%clk 0:02:17]} 13. Be2 {[%clk 0:02:23]}  Ne4 {[%clk 0:02:15]} 14. Rc1 {[%clk 0:02:19]}  Qf6 {[%clk 0:01:48]} 15. Nxc6 {[%clk 0:02:13]}  bxc6 {[%clk 0:01:45]} 16. h3 {[%clk 0:02:01]}  Bd7 {[%clk 0:00:57]} 17. Bd3 {[%clk 0:01:18]}  Rfe8 {[%clk 0:00:44]} 18. Kh1 {[%clk 0:00:57]}  a5 {[%clk 0:00:43]} 19. Rc2 {[%clk 0:00:46]}  c5 {[%clk 0:00:40]} 20. Qe2 {[%clk 0:00:28]}  a4 {[%clk 0:00:38]} 21. bxa4 {[%clk 0:00:07]}  Bxa4 {[%clk 0:00:37]} 22. Rb2 {[%clk 0:00:04]}  Qxb2 {[%clk 0:00:35]} 0-1

[Event "December 12 Early 2023"]
[Site "https://www.chess.com"]
[Date "2023.12.12"]
[Round "2"]
[White "Reinecke, Katharina"]
[Black "Begunov, Konstantin"]
[Result "0-1"]
[Board "224"]
[TimeControl "180+1"]
[WhiteFideId "12929727"]
[BlackFideId "4118510"]
[WhiteElo "2006"]
[BlackElo "2421"]
[WhiteTeam "GER"]
[BlackTeam "RUS"]
[WhiteClock "0:00:00"]
[BlackClock "0:00:43"]

1. d4 {[%clk 0:02:54]}  d5 {[%clk 0:02:59]} 2. c4 {[%clk 0:02:53]}  c6 {[%clk 0:02:59]} 3. Nf3 {[%clk 0:02:53]}  Nf6 {[%clk 0:02:59]} 4. g3 {[%clk 0:02:52]}  Bf5 {[%clk 0:02:59]} 5. Bg2 {[%clk 0:02:52]}  e6 {[%clk 0:02:59]} 6. O-O {[%clk 0:02:52]}  Nbd7 {[%clk 0:03:00]} 7. Nc3 {[%clk 0:02:52]}  Bd6 {[%clk 0:03:00]} 8. b3 {[%clk 0:02:52]}  Qe7 {[%clk 0:03:00]} 9. Bb2 {[%clk 0:02:51]}  Ne4 {[%clk 0:03:00]} 10. Nd2 {[%clk 0:02:36]}  Nxd2 {[%clk 0:02:08]} 11. Qxd2 {[%clk 0:02:35]}  Nf6 {[%clk 0:02:08]} 12. Rac1 {[%clk 0:02:25]}  O-O {[%clk 0:02:04]} 13. h3 {[%clk 0:02:14]}  Bb4 {[%clk 0:02:02]} 14. Qe3 {[%clk 0:01:53]}  h6 {[%clk 0:01:43]} 15. Kh2 {[%clk 0:01:42]}  Rfd8 {[%clk 0:01:36]} 16. c5 {[%clk 0:01:32]}  Re8 {[%clk 0:01:25]} 17. a3 {[%clk 0:01:23]}  Ba5 {[%clk 0:01:25]} 18. b4 {[%clk 0:01:22]}  Bc7 {[%clk 0:01:25]} 19. f4 {[%clk 0:01:13]}  b6 {[%clk 0:01:12]} 20. Qd2 {[%clk 0:01:01]}  bxc5 {[%clk 0:01:08]} 21. bxc5 {[%clk 0:00:58]}  Rab8 {[%clk 0:01:04]} 22. e3 {[%clk 0:00:56]}  Ba5 {[%clk 0:01:02]} 23. Qe2 {[%clk 0:00:47]}  Rb3 {[%clk 0:01:01]} 24. Nd1 {[%clk 0:00:43]}  Reb8 {[%clk 0:00:56]} 25. Ra1 {[%clk 0:00:41]}  Ne4 {[%clk 0:00:51]} 26. Bxe4 {[%clk 0:00:36]}  Bxe4 {[%clk 0:00:52]} 27. Ra2 {[%clk 0:00:17]}  Bd3 {[%clk 0:00:48]} 28. Qf2 {[%clk 0:00:16]}  Bxf1 {[%clk 0:00:45]} 29. Qxf1 {[%clk 0:00:16]}  Qb7 {[%clk 0:00:44]} 30. Qe2 {[%clk 0:00:15]}  Qb5 {[%clk 0:00:41]} 31. Qxb5 {[%clk 0:00:14]}  R8xb5 {[%clk 0:00:42]} 32. g4 {[%clk 0:00:13]}  Rd3 {[%clk 0:00:41]} 33. Nf2 {[%clk 0:00:07]}  Rd2 {[%clk 0:00:42]} 34. Kg3 {[%clk 0:00:03]}  Rbxb2 {[%clk 0:00:42]} 35. Rxb2 {[%clk 0:00:00]}  Rxb2 {[%clk 0:00:43]} 0-1

[Event "December 12 Early 2023"]
[Site "https://www.chess.com"]
[Date "2023.12.12"]
[Round "2"]
[White "Latorre, Vincent"]
[Black "Donatti, Alvaro"]
[Result "1-0"]
[Board "225"]
[TimeControl "180+1"]
[WhiteFideId "2636891"]
[BlackFideId "3000303"]
[WhiteElo "2421"]
[BlackElo "1989"]
[WhiteTeam "CAN"]
[BlackTeam "URU"]
[WhiteClock "0:01:21"]
[BlackClock "0:01:15"]

1. e4 {[%clk 0:03:00]}  c5 {[%clk 0:02:59]} 2. Nf3 {[%clk 0:03:00]}  e6 {[%clk 0:02:59]} 3. d4 {[%clk 0:03:00]}  cxd4 {[%clk 0:02:59]} 4. Nxd4 {[%clk 0:03:01]}  a6 {[%clk 0:02:58]} 5. Bd3 {[%clk 0:02:57]}  Nc6 {[%clk 0:02:56]} 6. Nxc6 {[%clk 0:02:56]}  dxc6 {[%clk 0:02:53]} 7. O-O {[%clk 0:02:55]}  e5 {[%clk 0:02:53]} 8. Kh1 {[%clk 0:02:53]}  Nf6 {[%clk 0:02:52]} 9. f4 {[%clk 0:02:38]}  Qb6 {[%clk 0:02:46]} 10. Nc3 {[%clk 0:02:18]}  Ng4 {[%clk 0:02:42]} 11. Qf3 {[%clk 0:02:10]}  Qc7 {[%clk 0:02:19]} 12. h3 {[%clk 0:02:03]}  Nf6 {[%clk 0:02:13]} 13. fxe5 {[%clk 0:02:01]}  Qxe5 {[%clk 0:02:10]} 14. Bf4 {[%clk 0:02:00]}  Qe6 {[%clk 0:02:08]} 15. e5 {[%clk 0:01:51]}  Nd5 {[%clk 0:01:54]} 16. Bc4 {[%clk 0:01:46]}  Bc5 {[%clk 0:01:49]} 17. Nxd5 {[%clk 0:01:45]}  cxd5 {[%clk 0:01:47]} 18. Bxd5 {[%clk 0:01:44]}  Qe7 {[%clk 0:01:47]} 19. Bg5 {[%clk 0:01:35]}  Qxg5 {[%clk 0:01:44]} 20. Qxf7+ {[%clk 0:01:34]}  Kd8 {[%clk 0:01:45]} 21. Rad1 {[%clk 0:01:31]}  Bg4 {[%clk 0:01:17]} 22. Be6+ {[%clk 0:01:22]}  Bxd1 {[%clk 0:01:15]} 23. Qd7# {[%clk 0:01:21]} 1-0

[Event "December 12 Early 2023"]
[Site "https://www.chess.com"]
[Date "2023.12.12"]
[Round "3"]
[White "Gabrielian, Artur"]
[Black "Duda, Jan-Krzysztof"]
[Result "1-0"]
[Board "6"]
[TimeControl "180+1"]
[WhiteFideId "4131002"]
[BlackFideId "1170546"]
[WhiteElo "2766"]
[BlackElo "3061"]
[WhiteTeam "RUS"]
[BlackTeam "POL"]
[WhiteClock "0:00:15"]
[BlackClock "0:00:00"]

1. e4 {[%clk 0:03:00]}  e5 {[%clk 0:02:56]} 2. Nf3 {[%clk 0:02:59]}  Nc6 {[%clk 0:02:57]} 3. Nc3 {[%clk 0:02:59]}  Nf6 {[%clk 0:02:51]} 4. Bb5 {[%clk 0:02:59]}  Bb4 {[%clk 0:02:50]} 5. O-O {[%clk 0:02:58]}  O-O {[%clk 0:02:48]} 6. d3 {[%clk 0:02:58]}  Bxc3 {[%clk 0:02:46]} 7. bxc3 {[%clk 0:02:58]}  d6 {[%clk 0:02:46]} 8. Bg5 {[%clk 0:02:48]}  Ne7 {[%clk 0:02:41]} 9. Bxf6 {[%clk 0:02:41]}  gxf6 {[%clk 0:02:42]} 10. Nh4 {[%clk 0:02:41]}  Ng6 {[%clk 0:02:32]} 11. Qh5 {[%clk 0:02:40]}  Nxh4 {[%clk 0:02:19]} 12. Qxh4 {[%clk 0:02:40]}  f5 {[%clk 0:02:20]} 13. Qh6 {[%clk 0:02:31]}  f4 {[%clk 0:02:19]} 14. d4 {[%clk 0:02:28]}  Kh8 {[%clk 0:02:16]} 15. Bc4 {[%clk 0:02:19]}  Qe7 {[%clk 0:02:12]} 16. Kh1 {[%clk 0:02:06]}  Rg8 {[%clk 0:02:05]} 17. dxe5 {[%clk 0:02:02]}  Rg6 {[%clk 0:01:45]} 18. Qxf4 {[%clk 0:01:59]}  dxe5 {[%clk 0:01:38]} 19. Qxf7 {[%clk 0:01:56]}  Qxf7 {[%clk 0:01:35]} 20. Bxf7 {[%clk 0:01:56]}  Rc6 {[%clk 0:01:34]} 21. c4 {[%clk 0:01:56]}  Kg7 {[%clk 0:01:34]} 22. Bd5 {[%clk 0:01:56]}  Rc5 {[%clk 0:01:32]} 23. f4 {[%clk 0:01:53]}  c6 {[%clk 0:01:31]} 24. fxe5 {[%clk 0:01:53]}  cxd5 {[%clk 0:01:31]} 25. cxd5 {[%clk 0:01:53]}  Bg4 {[%clk 0:01:27]} 26. Rf4 {[%clk 0:01:46]}  Bh5 {[%clk 0:01:25]} 27. Raf1 {[%clk 0:01:35]}  Rxc2 {[%clk 0:01:16]} 28. e6 {[%clk 0:01:34]}  Rd8 {[%clk 0:00:54]} 29. h4 {[%clk 0:01:31]}  Re2 {[%clk 0:00:47]} 30. Rc1 {[%clk 0:01:25]}  Bg6 {[%clk 0:00:40]} 31. Rc7+ {[%clk 0:01:21]}  Kh6 {[%clk 0:00:40]} 32. e7 {[%clk 0:01:21]}  Rg8 {[%clk 0:00:40]} 33. Rf6 {[%clk 0:01:04]}  Kh5 {[%clk 0:00:35]} 34. Rf8 {[%clk 0:00:18]}  Rg7 {[%clk 0:00:07]} 35. e8=Q {[%clk 0:00:18]}  Bxe8 {[%clk 0:00:07]} 36. Rxg7 {[%clk 0:00:17]}  Bg6 {[%clk 0:00:07]} 37. Rf4 {[%clk 0:00:14]}  Bxe4 {[%clk 0:00:06]} 38. Rg5+ {[%clk 0:00:15]}  Kh6 {[%clk 0:00:07]} 39. Rf6+ {[%clk 0:00:15]}  Bg6 {[%clk 0:00:07]} 40. d6 {[%clk 0:00:15]}  Re4 {[%clk 0:00:06]} 41. g3 {[%clk 0:00:15]}  Rd4 {[%clk 0:00:06]} 42. Re5 {[%clk 0:00:15]}  Kg7 {[%clk 0:00:06]} 43. Rfe6 {[%clk 0:00:15]}  Bf7 {[%clk 0:00:07]} 44. Re7 {[%clk 0:00:15]}  Kf6 {[%clk 0:00:05]} 45. d7 {[%clk 0:00:14]}  Bd5+ {[%clk 0:00:04]} 46. Kh2 {[%clk 0:00:14]}  Bc6 {[%clk 0:00:03]} 47. R5e6+ {[%clk 0:00:13]}  Kf5 {[%clk 0:00:03]} 48. Rxc6 {[%clk 0:00:12]}  bxc6 {[%clk 0:00:03]} 49. Rxh7 {[%clk 0:00:11]}  c5 {[%clk 0:00:01]} 50. Rh5+ {[%clk 0:00:11]}  Kf6 {[%clk 0:00:02]} 51. Rxc5 {[%clk 0:00:11]}  Rxd7 {[%clk 0:00:02]} 52. Ra5 {[%clk 0:00:12]}  Rb7 {[%clk 0:00:02]} 53. Kh3 {[%clk 0:00:12]}  Ke6 {[%clk 0:00:02]} 54. h5 {[%clk 0:00:12]}  Kd6 {[%clk 0:00:02]} 55. Kh4 {[%clk 0:00:13]}  Kc6 {[%clk 0:00:02]} 56. g4 {[%clk 0:00:13]}  Kb6 {[%clk 0:00:03]} 57. Rf5 {[%clk 0:00:12]}  Re7 {[%clk 0:00:04]} 58. h6 {[%clk 0:00:13]}  Re2 {[%clk 0:00:03]} 59. Kg5 {[%clk 0:00:13]}  Rxa2 {[%clk 0:00:03]} 60. Kg6 {[%clk 0:00:13]}  Rh2 {[%clk 0:00:03]} 61. Rh5 {[%clk 0:00:13]}  Rg2 {[%clk 0:00:03]} 62. g5 {[%clk 0:00:13]}  Rc2 {[%clk 0:00:03]} 63. h7 {[%clk 0:00:13]}  Rc6+ {[%clk 0:00:04]} 64. Kf5 {[%clk 0:00:14]}  Rc5+ {[%clk 0:00:04]} 65. Ke4 {[%clk 0:00:14]}  Rc4+ {[%clk 0:00:04]} 66. Kd3 {[%clk 0:00:14]}  Rc8 {[%clk 0:00:00]} 67. h8=Q {[%clk 0:00:15]} 1-0

[Event "December 12 Early 2023"]
[Site "https://www.chess.com"]
[Date "2023.12.12"]
[Round "3"]
[White "Zemlyanskii, Ivan"]
[Black "Gormally, Daniel W"]
[Result "1-0"]
[Board "8"]
[TimeControl "180+1"]
[WhiteFideId "24249971"]
[BlackFideId "406465"]
[WhiteElo "3045"]
[BlackElo "2761"]
[WhiteTeam "RUS"]
[BlackTeam "ENG"]
[WhiteClock "0:00:26"]
[BlackClock "0:01:05"]

1. d4 {[%clk 0:03:00]}  Nf6 {[%clk 0:02:58]} 2. c4 {[%clk 0:03:01]}  e6 {[%clk 0:02:58]} 3. Bf4 {[%clk 0:03:01]}  b6 {[%clk 0:02:58]} 4. Nc3 {[%clk 0:03:01]}  Bb4 {[%clk 0:02:56]} 5. Qc2 {[%clk 0:03:01]}  Bb7 {[%clk 0:02:56]} 6. e3 {[%clk 0:03:02]}  O-O {[%clk 0:02:56]} 7. Ne2 {[%clk 0:03:02]}  d5 {[%clk 0:02:54]} 8. cxd5 {[%clk 0:02:57]}  Nxd5 {[%clk 0:02:54]} 9. Bg3 {[%clk 0:02:52]}  c5 {[%clk 0:02:49]} 10. dxc5 {[%clk 0:02:08]}  Bxc5 {[%clk 0:02:42]} 11. Rd1 {[%clk 0:01:46]}  Qe7 {[%clk 0:02:40]} 12. Nxd5 {[%clk 0:01:39]}  Bxd5 {[%clk 0:02:40]} 13. Nc3 {[%clk 0:01:38]}  Bb7 {[%clk 0:02:40]} 14. Bd3 {[%clk 0:01:35]}  Bxg2 {[%clk 0:02:31]} 15. Rg1 {[%clk 0:01:21]}  Bf3 {[%clk 0:02:30]} 16. Bxh7+ {[%clk 0:01:19]}  Kh8 {[%clk 0:02:30]} 17. Be4 {[%clk 0:01:20]}  Bxe4 {[%clk 0:02:25]} 18. Qxe4 {[%clk 0:01:06]}  Nd7 {[%clk 0:02:18]} 19. Qg4 {[%clk 0:00:51]}  f5 {[%clk 0:02:05]} 20. Qh5+ {[%clk 0:00:50]}  Kg8 {[%clk 0:02:03]} 21. Bh4 {[%clk 0:00:49]}  Nf6 {[%clk 0:02:00]} 22. Qg6 {[%clk 0:00:43]}  Qf7 {[%clk 0:01:52]} 23. Bxf6 {[%clk 0:00:36]}  Qxg6 {[%clk 0:01:52]} 24. Rxg6 {[%clk 0:00:35]}  Rxf6 {[%clk 0:01:53]} 25. Rxf6 {[%clk 0:00:35]}  gxf6 {[%clk 0:01:53]} 26. Nb5 {[%clk 0:00:35]}  e5 {[%clk 0:01:30]} 27. Rd7 {[%clk 0:00:33]}  a6 {[%clk 0:01:29]} 28. Nc7 {[%clk 0:00:27]}  Ra7 {[%clk 0:01:29]} 29. Nd5 {[%clk 0:00:26]}  Rxd7 {[%clk 0:01:26]} 30. Nxf6+ {[%clk 0:00:26]}  Kf7 {[%clk 0:01:13]} 31. Nxd7 {[%clk 0:00:27]}  Bd6 {[%clk 0:01:12]} 32. Nxb6 {[%clk 0:00:27]}  e4 {[%clk 0:01:13]} 33. h3 {[%clk 0:00:26]}  Ke6 {[%clk 0:01:05]} 34. Nc4 {[%clk 0:00:26]} 1-0

[Event "December 12 Early 2023"]
[Site "https://www.chess.com"]
[Date "2023.12.12"]
[Round "3"]
[White "Rychkov, Oleg"]
[Black "Paravyan, David"]
[Result "0-1"]
[Board "11"]
[TimeControl "180+1"]
[WhiteFideId "4122852"]
[BlackFideId "4194985"]
[WhiteElo "2746"]
[BlackElo "3022"]
[WhiteTeam "RUS"]
[BlackTeam "FID"]
[WhiteClock "0:00:00"]
[BlackClock "0:01:11"]

1. e4 {[%clk 0:02:43]}  e5 {[%clk 0:02:59]} 2. Bc4 {[%clk 0:02:43]}  Nf6 {[%clk 0:02:59]} 3. d3 {[%clk 0:02:43]}  c6 {[%clk 0:02:59]} 4. Nf3 {[%clk 0:02:43]}  d5 {[%clk 0:02:59]} 5. Bb3 {[%clk 0:02:43]}  a5 {[%clk 0:02:58]} 6. a3 {[%clk 0:02:42]}  a4 {[%clk 0:02:57]} 7. Ba2 {[%clk 0:02:42]}  Bd6 {[%clk 0:02:43]} 8. Nc3 {[%clk 0:02:42]}  d4 {[%clk 0:02:36]} 9. Ne2 {[%clk 0:02:41]}  c5 {[%clk 0:02:37]} 10. c3 {[%clk 0:02:39]}  Nc6 {[%clk 0:02:37]} 11. O-O {[%clk 0:02:37]}  Be6 {[%clk 0:02:37]} 12. Bxe6 {[%clk 0:02:21]}  fxe6 {[%clk 0:02:37]} 13. cxd4 {[%clk 0:02:20]}  cxd4 {[%clk 0:02:37]} 14. Bg5 {[%clk 0:02:19]}  O-O {[%clk 0:02:32]} 15. Rc1 {[%clk 0:02:18]}  Qb6 {[%clk 0:02:30]} 16. Nd2 {[%clk 0:02:17]}  Qa6 {[%clk 0:02:23]} 17. Nc4 {[%clk 0:02:14]}  Bc7 {[%clk 0:02:24]} 18. Ng3 {[%clk 0:01:48]}  h6 {[%clk 0:02:14]} 19. Bxf6 {[%clk 0:01:48]}  Rxf6 {[%clk 0:02:15]} 20. Qg4 {[%clk 0:01:46]}  Kh7 {[%clk 0:02:13]} 21. h4 {[%clk 0:01:36]}  Raf8 {[%clk 0:02:10]} 22. h5 {[%clk 0:01:36]}  Qb5 {[%clk 0:02:06]} 23. Ne2 {[%clk 0:01:19]}  Qb3 {[%clk 0:02:03]} 24. Qh3 {[%clk 0:00:58]}  R8f7 {[%clk 0:01:53]} 25. Rfd1 {[%clk 0:00:45]}  Rxf2 {[%clk 0:01:36]} 26. Qxe6 {[%clk 0:00:44]}  Bd8 {[%clk 0:01:37]} 27. Qg6+ {[%clk 0:00:32]}  Kg8 {[%clk 0:01:36]} 28. Ng3 {[%clk 0:00:25]}  Bg5 {[%clk 0:01:27]} 29. Nf5 {[%clk 0:00:20]}  R2xf5 {[%clk 0:01:27]} 30. exf5 {[%clk 0:00:20]}  Bxc1 {[%clk 0:01:28]} 31. Rxc1 {[%clk 0:00:19]}  Qxd3 {[%clk 0:01:28]} 32. Nd6 {[%clk 0:00:14]}  Qe3+ {[%clk 0:01:28]} 33. Kh2 {[%clk 0:00:15]}  Qf4+ {[%clk 0:01:22]} 34. Kh3 {[%clk 0:00:14]}  Rf6 {[%clk 0:01:16]} 35. Qe8+ {[%clk 0:00:13]}  Kh7 {[%clk 0:01:17]} 36. Re1 {[%clk 0:00:10]}  d3 {[%clk 0:01:13]} 37. Nf7 {[%clk 0:00:09]}  Qxf5+ {[%clk 0:01:13]} 38. g4 {[%clk 0:00:00]}  Qf3+ {[%clk 0:01:11]} 0-1